{"text_format":"1","workbook":"xlsx","n_sheets":4,"sheets":["Отчет","ПТО","Абонентский отдел","Юридический отдел"],"not_rendered":{"charts":0,"images":0,"macros":1,"external_links":0,"defined_names":3,"comments":0,"pivot_tables":0},"unopened":[],"bounds":{"document_bytes":16777216,"sheet_cells":100000,"rows_first":2000,"rows_last":500,"rows_between":2000,"halvings":0,"cell_chars":16384,"cell_head_chars":4096},"cells_cut":0,"cells_raw":0,"read":"whole","date_system":"1900"}

{"sheet":"Отчет","index":0,"n_rows":214,"n_cols":23,"rows_kept":214,"cut":false,"hidden":false,"merged":[[204,0,204,6],[205,0,205,6],[206,0,206,6],[207,0,207,6],[208,0,208,6],[209,0,209,6],[210,0,210,6],[211,0,211,6],[212,0,212,6],[137,0,137,8],[138,0,138,8],[139,0,139,8],[140,0,140,8],[199,0,199,6],[200,0,200,6],[201,0,201,6],[202,0,202,6],[203,0,203,6],[192,0,192,9],[193,0,193,6],[194,0,194,6],[195,0,195,6],[196,0,196,6],[197,0,197,6],[198,0,198,6],[182,0,182,4],[183,0,183,4],[184,0,184,4],[185,0,185,4],[186,0,186,4],[182,8,182,9],[183,8,183,9],[184,8,184,9],[130,0,130,8],[131,0,131,8],[132,0,132,8],[133,0,133,2],[133,3,133,4],[133,6,133,9],[134,0,134,8],[135,0,135,8],[136,0,136,8],[117,0,117,2],[117,3,117,4],[117,6,117,9],[118,0,118,8],[119,0,119,8],[120,0,120,8],[121,0,121,8],[122,0,122,8],[123,0,123,8],[124,0,124,8],[125,0,125,2],[125,3,125,4],[125,6,125,9],[126,0,126,8],[127,0,127,8],[128,0,128,8],[129,0,129,8],[181,0,181,4],[181,8,181,9],[179,0,179,4],[180,0,180,4],[163,8,163,9],[164,8,164,9],[165,8,165,9],[166,8,166,9],[167,8,167,9],[168,8,168,9],[169,8,169,9],[170,8,170,9],[171,8,171,9],[172,8,172,9],[173,8,173,9],[174,8,174,9],[185,8,185,9],[186,8,186,9],[181,5,181,6],[182,5,182,6],[183,5,183,6],[184,5,184,6],[185,5,185,6],[186,5,186,6],[163,0,163,4],[164,0,164,4],[165,0,165,4],[166,0,166,4],[167,0,167,4],[168,0,168,4],[169,0,169,4],[170,0,170,4],[171,0,171,4],[172,0,172,4],[173,0,173,4],[174,0,174,4],[175,0,175,4],[176,0,176,4],[177,0,177,4],[178,0,178,4],[175,8,175,9],[176,8,176,9],[177,8,177,9],[178,8,178,9],[179,8,179,9],[180,8,180,9],[172,5,172,6],[173,5,173,6],[174,5,174,6],[175,5,175,6],[176,5,176,6],[177,5,177,6],[178,5,178,6],[179,5,179,6],[180,5,180,6],[163,5,163,6],[164,5,164,6],[165,5,165,6],[166,5,166,6],[167,5,167,6],[168,5,168,6],[169,5,169,6],[170,5,170,6],[171,5,171,6],[80,11,89,11],[93,11,116,11],[26,0,26,4],[26,8,26,9],[26,5,26,6],[22,0,22,8],[23,0,23,8],[29,0,29,4],[29,5,29,6],[28,8,28,9],[35,8,35,9],[36,8,36,9],[53,8,53,9],[27,5,27,6],[28,5,28,6],[35,5,35,6],[36,5,36,6],[82,0,82,8],[83,0,83,8],[84,0,84,8],[85,0,85,8],[86,0,86,8],[87,0,87,8],[88,0,88,8],[1,0,1,9],[7,11,23,11],[26,11,71,11],[31,0,31,4],[32,0,32,4],[33,0,33,4],[34,0,34,4],[53,5,53,6],[71,5,71,6],[30,0,30,4],[27,0,27,4],[28,0,28,4],[35,0,35,4],[36,0,36,4],[53,0,53,4],[71,0,71,4],[32,8,32,9],[33,8,33,9],[34,8,34,9],[30,5,30,6],[31,5,31,6],[33,5,33,6],[34,5,34,6],[27,8,27,9],[16,0,16,8],[17,0,17,8],[18,0,18,8],[19,0,19,8],[20,0,20,8],[21,0,21,8],[32,5,32,6],[29,8,29,9],[74,0,74,8],[37,8,37,9],[52,0,52,4],[52,5,52,6],[52,8,52,9],[51,0,51,4],[51,5,51,6],[51,8,51,9],[38,0,38,4],[38,5,38,6],[38,8,38,9],[39,0,39,4],[39,5,39,6],[39,8,39,9],[40,0,40,4],[40,5,40,6],[7,0,7,8],[8,0,8,8],[9,0,9,8],[10,0,10,8],[11,0,11,8],[12,0,12,8],[13,0,13,8],[14,0,14,8],[15,0,15,8],[104,0,104,8],[71,8,71,9],[30,8,30,9],[31,8,31,9],[105,0,105,8],[114,0,114,8],[115,0,115,8],[116,0,116,8],[107,0,107,8],[108,0,108,8],[110,0,110,8],[111,0,111,8],[112,0,112,8],[113,0,113,8],[109,3,109,4],[109,6,109,9],[89,0,89,8],[80,0,80,8],[81,0,81,8],[77,0,77,8],[75,0,75,8],[76,0,76,8],[37,0,37,4],[37,5,37,6],[74,11,77,11],[143,0,143,8],[144,0,144,8],[145,0,145,8],[92,0,92,2],[92,6,92,9],[93,6,93,9],[92,3,92,4],[93,3,93,4],[93,0,93,2],[101,0,101,2],[101,3,101,4],[101,6,101,9],[109,0,109,2],[106,0,106,8],[94,0,94,8],[95,0,95,8],[96,0,96,8],[97,0,97,8],[98,0,98,8],[99,0,99,8],[100,0,100,8],[102,0,102,8],[103,0,103,8],[148,0,148,9],[154,0,154,3],[153,0,153,3],[156,0,156,4],[156,5,156,6],[156,8,156,9],[157,0,157,4],[157,5,157,6],[157,8,157,9],[158,0,158,4],[158,5,158,6],[158,8,158,9],[159,0,159,4],[159,5,159,6],[159,8,159,9],[160,0,160,4],[160,5,160,6],[160,8,160,9],[161,0,161,4],[161,5,161,6],[161,8,161,9],[162,0,162,4],[162,5,162,6],[162,8,162,9],[189,0,189,3],[190,0,190,3],[40,8,40,9],[41,0,41,4],[41,5,41,6],[41,8,41,9],[42,0,42,4],[42,5,42,6],[42,8,42,9],[48,0,48,4],[48,5,48,6],[48,8,48,9],[49,0,49,4],[49,5,49,6],[49,8,49,9],[50,0,50,4],[50,5,50,6],[50,8,50,9],[43,0,43,4],[43,5,43,6],[43,8,43,9],[44,0,44,4],[44,5,44,6],[44,8,44,9],[45,0,45,4],[45,5,45,6],[45,8,45,9],[46,0,46,4],[46,5,46,6],[46,8,46,9],[47,0,47,4],[47,5,47,6],[47,8,47,9],[69,0,69,4],[69,5,69,6],[69,8,69,9],[59,0,59,4],[59,5,59,6],[59,8,59,9],[60,0,60,4],[60,5,60,6],[60,8,60,9],[61,0,61,4],[61,5,61,6],[61,8,61,9],[62,0,62,4],[62,5,62,6],[62,8,62,9],[63,0,63,4],[63,5,63,6],[63,8,63,9],[70,0,70,4],[70,5,70,6],[70,8,70,9],[54,0,54,4],[54,5,54,6],[54,8,54,9],[55,0,55,4],[55,5,55,6],[55,8,55,9],[56,0,56,4],[56,5,56,6],[56,8,56,9],[67,0,67,4],[67,5,67,6],[67,8,67,9],[68,0,68,4],[68,5,68,6],[68,8,68,9],[57,0,57,4],[57,5,57,6],[57,8,57,9],[58,0,58,4],[58,5,58,6],[58,8,58,9],[64,0,64,4],[64,5,64,6],[64,8,64,9],[65,0,65,4],[65,5,65,6],[65,8,65,9],[66,0,66,4],[66,5,66,6],[66,8,66,9]]}
[null,null,null,null,null,null,null,null,"Форма 2.8"]
["Отчет об исполнении договора управления многоквартирного дома \nБайкальская, 307"]
[]
["Начала отчетного периода",null,null,null,"2016-01-01"]
["Конец отчетного периода",null,null,null,"2016-12-31"]
[]
["ОБЩАЯ ИНФОРМАЦИЯ"]
["Авансовые платежи потребителей (на начало периода), руб.",null,null,null,null,null,null,null,null,{"$f":"VLOOKUP(O8,АО,3,FALSE)","v":0},null,null,null,null,"общая1"]
["Переходящие остатки денежных средств (на начало периода), руб.",null,null,null,null,null,null,null,null,0,null,null,null,null,"общая2"]
["Задолженность потребителей (на начало периода), руб.",null,null,null,null,null,null,null,null,290389.84000000003,null,null,null,null,"общая3"]
["Начислено за услуги (работы) по содержанию и текущему ремонту, в том числе:",null,null,null,null,null,null,null,null,1021952.59,null,null,null,null,"общая4"]
["за содержание дома, руб.",null,null,null,null,null,null,null,null,894510.19,null,null,null,null,"общая5"]
["за текущий ремонт, руб.",null,null,null,null,null,null,null,null,127442.4,null,null,null,null,"общая6"]
["за услуги управления, руб.",null,null,null,null,null,null,null,null,0,null,null,null,null,"общая7"]
["Получено денежных средств, в том числе:",null,null,null,null,null,null,null,null,1111262.74,null,null,null,null,"общая8"]
["денежных средств от собственников/нанимателей помещений, руб.",null,null,null,null,null,null,null,null,1111262.74,null,null,null,null,"общая9"]
["целевых взносов от собственников/нанимателей помещений, руб.",null,null,null,null,null,null,null,null,0,null,null,null,null,"общая10"]
["субсидий, руб.",null,null,null,null,null,null,null,null,0,null,null,null,null,"общая11"]
["денежных средств от использования общего имущества, руб.",null,null,null,null,null,null,null,null,0,null,null,null,null,"общая12"]
["прочие поступления, руб.",null,null,null,null,null,null,null,null,0,null,null,null,null,"общая13"]
["Всего денежных средств с учетом остатков, руб.",null,null,null,null,null,null,null,null,1111262.74,null,null,null,null,"общая14"]
["Авансовые платежи потребителей (на конец периода), руб.",null,null,null,null,null,null,null,null,0,null,null,null,null,"общая15"]
["Переходящие остатки денежных средств (на конец периода), руб.",null,null,null,null,null,null,null,null,0,null,null,null,null,"общая16"]
["Задолженность потребителей (на конец периода), руб.",null,null,null,null,null,null,null,null,201079.68999999994,null,null,null,null,"общая17"]
[]
["ВЫПОЛНЕННЫЕ РАБОТЫ"]
["Наименование работы",null,null,null,null,"Годовая фактическая стоимость работ/услуг (руб.)",null,"Периодичность выполнения работ/оказания услуг","Количество работ (услуг) в детальном перечне",null,null,null,null,null,null,null,null,null,null,null,null,null,{"$f":"INDEX(ПТО!$A$39:$B$53,SMALL(IF(ПТО!$L$39=ПТО!L39:L53,ROW(ПТО!$A$39:$B$53)-32,\"\"),ROW()-27))","v":{"$error":"#VALUE!"}}]
[{"$f":"ПТО!A39","v":"Работы, выполняемые для надлежащего содержания внутридомовых инженерных систем и конструктивных элементов дома"},null,null,null,null,{"$f":"VLOOKUP(A28,ПТО!$A$39:$D$53,2,FALSE)","v":445334.1},null,{"$f":"VLOOKUP(A28,ПТО!$A$39:$D$53,3,FALSE)","v":"Ежемесячно"},{"$f":"VLOOKUP(A28,ПТО!$A$39:$D$53,4,FALSE)","v":12},null,null,null,null,null,{"$f":"A28","v":"Работы, выполняемые для надлежащего содержания внутридомовых инженерных систем и конструктивных элементов дома"},null,null,"СОД"]
[{"$f":"ПТО!A40","v":"Работы по содержанию лифта (лифтов)"},null,null,null,null,{"$f":"VLOOKUP(A29,ПТО!$A$39:$D$53,2,FALSE)","v":168000},null,{"$f":"VLOOKUP(A29,ПТО!$A$39:$D$53,3,FALSE)","v":"Ежемесячно"},{"$f":"VLOOKUP(A29,ПТО!$A$39:$D$53,4,FALSE)","v":12},null,null,null,null,null,"Работы по содержанию лифта (лифтов)",null,null,"СОД"]
[{"$f":"ПТО!A41","v":"Работы по содержанию земельного участка с элементами озеленения и благоустройства, иными объектами, предназначенными для обслуживания и эксплуатации многоквартирного дома"},null,null,null,null,{"$f":"VLOOKUP(A30,ПТО!$A$39:$D$53,2,FALSE)","v":55377.93},null,{"$f":"VLOOKUP(A30,ПТО!$A$39:$D$53,3,FALSE)","v":"В соответствии с графиком"},{"$f":"VLOOKUP(A30,ПТО!$A$39:$D$53,4,FALSE)","v":12},null,null,null,null,null,"Работы по содержанию земельного участка с элементами озеленения и благоустройства, иными объектами, предназначенными для обслуживания и эксплуатации многоквартирного дома",null,null,"СОД"]
[{"$f":"ПТО!A42","v":"Работы, выполняемые для надлежащего содержания электрооборудования дома"},null,null,null,null,{"$f":"VLOOKUP(A31,ПТО!$A$39:$D$53,2,FALSE)","v":73279.38},null,{"$f":"VLOOKUP(A31,ПТО!$A$39:$D$53,3,FALSE)","v":"Ежемесячно"},{"$f":"VLOOKUP(A31,ПТО!$A$39:$D$53,4,FALSE)","v":12},null,null,null,null,null,"Работы, выполняемые для надлежащего содержания электрооборудования дома",null,null,"СОД"]
[{"$f":"ПТО!A43","v":0},null,null,null,null,{"$f":"VLOOKUP(A32,ПТО!$A$39:$D$53,2,FALSE)","v":{"$error":"#N/A"}},null,{"$f":"VLOOKUP(A32,ПТО!$A$39:$D$53,3,FALSE)","v":{"$error":"#N/A"}},{"$f":"VLOOKUP(A32,ПТО!$A$39:$D$53,4,FALSE)","v":{"$error":"#N/A"}},null,null,null,null,null,0,null,null,"СОД"]
[{"$f":"ПТО!A44","v":"Обеспечение устранения аварий на внутридомовых инженерных системах в многоквартирном доме"},null,null,null,null,{"$f":"VLOOKUP(A33,ПТО!$A$39:$D$53,2,FALSE)","v":50331.48},null,{"$f":"VLOOKUP(A33,ПТО!$A$39:$D$53,3,FALSE)","v":"Круглосуточно"},{"$f":"VLOOKUP(A33,ПТО!$A$39:$D$53,4,FALSE)","v":12},null,null,null,null,null,"Обеспечение устранения аварий на внутридомовых инженерных системах в многоквартирном доме",null,null,"СОД"]
[{"$f":"ПТО!A45","v":"Работы по содержанию помещений, входящих в состав общего имущества в многоквартирном доме"},null,null,null,null,{"$f":"VLOOKUP(A34,ПТО!$A$39:$D$53,2,FALSE)","v":155538.21},null,{"$f":"VLOOKUP(A34,ПТО!$A$39:$D$53,3,FALSE)","v":"В соответствии с графиком"},{"$f":"VLOOKUP(A34,ПТО!$A$39:$D$53,4,FALSE)","v":12},null,null,null,null,null,"Работы по содержанию помещений, входящих в состав общего имущества в многоквартирном доме",null,null,"СОД"]
[{"$f":"ПТО!A46","v":"Расходы на содержание информационных систем, обеспечивающих сбор, обработку и хранение данных о платежах, выставление платежных документов, снятие показаний приборов учета и т.п."},null,null,null,null,{"$f":"VLOOKUP(A35,ПТО!$A$39:$D$53,2,FALSE)","v":63256.24},null,{"$f":"VLOOKUP(A35,ПТО!$A$39:$D$53,3,FALSE)","v":"Ежемесячно"},{"$f":"VLOOKUP(A35,ПТО!$A$39:$D$53,4,FALSE)","v":12},null,null,null,null,null,"Расходы на содержание информационных систем, обеспечивающих сбор, обработку и хранение данных о платежах, выставление платежных документов, снятие показаний приборов учета и т.п.",null,null,"СОД"]
[{"$f":"ПТО!A47","v":"Работы по обеспечению вывоза бытовых отходов"},null,null,null,null,{"$f":"VLOOKUP(A36,ПТО!$A$39:$D$53,2,FALSE)","v":111646.58},null,{"$f":"VLOOKUP(A36,ПТО!$A$39:$D$53,3,FALSE)","v":"В соответствии с графиком"},{"$f":"VLOOKUP(A36,ПТО!$A$39:$D$53,4,FALSE)","v":12},null,null,null,null,null,"Работы по обеспечению вывоза бытовых отходов",null,null,"СОД"]
[{"$f":"ПТО!A48","v":0},null,null,null,null,{"$f":"VLOOKUP(A37,ПТО!$A$39:$D$53,2,FALSE)","v":{"$error":"#N/A"}},null,{"$f":"VLOOKUP(A37,ПТО!$A$39:$D$53,3,FALSE)","v":{"$error":"#N/A"}},{"$f":"VLOOKUP(A37,ПТО!$A$39:$D$53,4,FALSE)","v":{"$error":"#N/A"}},null,null,null,null,null,0,null,null,"СОД"]
[{"$f":"ПТО!A49","v":0},null,null,null,null,{"$f":"VLOOKUP(A38,ПТО!$A$39:$D$53,2,FALSE)","v":{"$error":"#N/A"}},null,{"$f":"VLOOKUP(A38,ПТО!$A$39:$D$53,3,FALSE)","v":{"$error":"#N/A"}},{"$f":"VLOOKUP(A38,ПТО!$A$39:$D$53,4,FALSE)","v":{"$error":"#N/A"}},null,null,null,null,null,0,null,null,"СОД"]
[{"$f":"ПТО!A50","v":0},null,null,null,null,{"$f":"VLOOKUP(A39,ПТО!$A$39:$D$53,2,FALSE)","v":{"$error":"#N/A"}},null,{"$f":"VLOOKUP(A39,ПТО!$A$39:$D$53,3,FALSE)","v":{"$error":"#N/A"}},{"$f":"VLOOKUP(A39,ПТО!$A$39:$D$53,4,FALSE)","v":{"$error":"#N/A"}},null,null,null,null,null,0,null,null,"СОД"]
[{"$f":"ПТО!A51","v":0},null,null,null,null,{"$f":"VLOOKUP(A40,ПТО!$A$39:$D$53,2,FALSE)","v":{"$error":"#N/A"}},null,{"$f":"VLOOKUP(A40,ПТО!$A$39:$D$53,3,FALSE)","v":{"$error":"#N/A"}},{"$f":"VLOOKUP(A40,ПТО!$A$39:$D$53,4,FALSE)","v":{"$error":"#N/A"}},null,null,null,null,null,0,null,null,"СОД"]
[{"$f":"ПТО!A52","v":0},null,null,null,null,{"$f":"VLOOKUP(A41,ПТО!$A$39:$D$53,2,FALSE)","v":{"$error":"#N/A"}},null,{"$f":"VLOOKUP(A41,ПТО!$A$39:$D$53,3,FALSE)","v":{"$error":"#N/A"}},{"$f":"VLOOKUP(A41,ПТО!$A$39:$D$53,4,FALSE)","v":{"$error":"#N/A"}},null,null,null,null,null,0,null,null,"СОД"]
[{"$f":"ПТО!A53","v":0},null,null,null,null,{"$f":"VLOOKUP(A42,ПТО!$A$39:$D$53,2,FALSE)","v":{"$error":"#N/A"}},null,{"$f":"VLOOKUP(A42,ПТО!$A$39:$D$53,3,FALSE)","v":{"$error":"#N/A"}},{"$f":"VLOOKUP(A42,ПТО!$A$39:$D$53,4,FALSE)","v":{"$error":"#N/A"}},null,null,null,null,null,0,null,null,"СОД"]
[{"$f":"ПТО!A2","v":"Корректировка платы за отопление."},null,null,null,null,{"$f":"VLOOKUP(A43,ПТО!$A$2:$D$31,4,FALSE)","v":-75094.78},null,{"$f":"VLOOKUP(A43,ПТО!$A$2:$D$31,2,FALSE)","v":" Гкал"},{"$f":"VLOOKUP(A43,ПТО!$A$2:$D$31,3,FALSE)","v":75.86},null,null,null,null,null,"Корректировка платы за отопление.",null,null,"ТР"]
[{"$f":"ПТО!A3","v":"Техническое освидетельствование лифта."},null,null,null,null,{"$f":"VLOOKUP(A44,ПТО!$A$2:$D$31,4,FALSE)","v":15000},null,{"$f":"VLOOKUP(A44,ПТО!$A$2:$D$31,2,FALSE)","v":"шт."},{"$f":"VLOOKUP(A44,ПТО!$A$2:$D$31,3,FALSE)","v":2},null,null,null,null,null,"Техническое освидетельствование лифта.",null,null,"ТР"]
[{"$f":"ПТО!A4","v":"Вывоз снега с придомовой территории в феврале."},null,null,null,null,{"$f":"VLOOKUP(A45,ПТО!$A$2:$D$31,4,FALSE)","v":7798.35},null,{"$f":"VLOOKUP(A45,ПТО!$A$2:$D$31,2,FALSE)","v":"м/час"},{"$f":"VLOOKUP(A45,ПТО!$A$2:$D$31,3,FALSE)","v":31},null,null,null,null,null,"Вывоз снега с придомовой территории в феврале.",null,null,"ТР"]
[{"$f":"ПТО!A5","v":"Проектирование, монтаж узла учета тепловой энергии."},null,null,null,null,{"$f":"VLOOKUP(A46,ПТО!$A$2:$D$31,4,FALSE)","v":120319.41},null,{"$f":"VLOOKUP(A46,ПТО!$A$2:$D$31,2,FALSE)","v":"шт."},{"$f":"VLOOKUP(A46,ПТО!$A$2:$D$31,3,FALSE)","v":1},null,null,null,null,null,"Проектирование, монтаж узла учета тепловой энергии.",null,null,"ТР"]
[{"$f":"ПТО!A6","v":"Благоустройство территории (посадка цветов)."},null,null,null,null,{"$f":"VLOOKUP(A47,ПТО!$A$2:$D$31,4,FALSE)","v":537},null,{"$f":"VLOOKUP(A47,ПТО!$A$2:$D$31,2,FALSE)","v":"шт."},{"$f":"VLOOKUP(A47,ПТО!$A$2:$D$31,3,FALSE)","v":23},null,null,null,null,null,"Благоустройство территории (посадка цветов).",null,null,"ТР"]
[{"$f":"ПТО!A7","v":"Замена платы привода дверей в пассажирском лифте."},null,null,null,null,{"$f":"VLOOKUP(A48,ПТО!$A$2:$D$31,4,FALSE)","v":26950},null,{"$f":"VLOOKUP(A48,ПТО!$A$2:$D$31,2,FALSE)","v":"шт."},{"$f":"VLOOKUP(A48,ПТО!$A$2:$D$31,3,FALSE)","v":1},null,null,null,null,null,"Замена платы привода дверей в пассажирском лифте.",null,null,"ТР"]
[{"$f":"ПТО!A8","v":"Монтаж охранной сигнализации ИТП."},null,null,null,null,{"$f":"VLOOKUP(A49,ПТО!$A$2:$D$31,4,FALSE)","v":17233},null,{"$f":"VLOOKUP(A49,ПТО!$A$2:$D$31,2,FALSE)","v":"шт."},{"$f":"VLOOKUP(A49,ПТО!$A$2:$D$31,3,FALSE)","v":1},null,null,null,null,null,"Монтаж охранной сигнализации ИТП.",null,null,"ТР"]
[{"$f":"ПТО!A9","v":"Монтаж дверей (вход в подвал)."},null,null,null,null,{"$f":"VLOOKUP(A50,ПТО!$A$2:$D$31,4,FALSE)","v":26000},null,{"$f":"VLOOKUP(A50,ПТО!$A$2:$D$31,2,FALSE)","v":"шт."},{"$f":"VLOOKUP(A50,ПТО!$A$2:$D$31,3,FALSE)","v":2},null,null,null,null,null,"Монтаж дверей (вход в подвал).",null,null,"ТР"]
[{"$f":"ПТО!A10","v":"Восстановление радиаторов отопления в подъезде в замен украденных."},null,null,null,null,{"$f":"VLOOKUP(A51,ПТО!$A$2:$D$31,4,FALSE)","v":34670},null,{"$f":"VLOOKUP(A51,ПТО!$A$2:$D$31,2,FALSE)","v":"секций"},{"$f":"VLOOKUP(A51,ПТО!$A$2:$D$31,3,FALSE)","v":57},null,null,null,null,null,"Восстановление радиаторов отопления в подъезде в замен украденных.",null,null,"ТР"]
[{"$f":"ПТО!A11","v":"Покраска стен в подъезде в цокольном и на 1-ом этаже."},null,null,null,null,{"$f":"VLOOKUP(A52,ПТО!$A$2:$D$31,4,FALSE)","v":4960},null,{"$f":"VLOOKUP(A52,ПТО!$A$2:$D$31,2,FALSE)","v":"м2"},{"$f":"VLOOKUP(A52,ПТО!$A$2:$D$31,3,FALSE)","v":189.5},null,null,null,null,null,"Покраска стен в подъезде в цокольном и на 1-ом этаже.",null,null,"ТР"]
[{"$f":"ПТО!A12","v":"Монтаж щетинистого покрытия на крыльце."},null,null,null,null,{"$f":"VLOOKUP(A53,ПТО!$A$2:$D$31,4,FALSE)","v":3900},null,{"$f":"VLOOKUP(A53,ПТО!$A$2:$D$31,2,FALSE)","v":"м.п."},{"$f":"VLOOKUP(A53,ПТО!$A$2:$D$31,3,FALSE)","v":14},null,null,null,null,null,"Монтаж щетинистого покрытия на крыльце.",null,null,"ТР"]
[{"$f":"ПТО!A13","v":"Устройство катка на детской площадке."},null,null,null,null,{"$f":"VLOOKUP(A54,ПТО!$A$2:$D$31,4,FALSE)","v":2136},null,{"$f":"VLOOKUP(A54,ПТО!$A$2:$D$31,2,FALSE)","v":"шт."},{"$f":"VLOOKUP(A54,ПТО!$A$2:$D$31,3,FALSE)","v":1},null,null,null,null,null,"Устройство катка на детской площадке.",null,null,"ТР"]
[{"$f":"ПТО!A14","v":"Монтаж гирлянд на световые опоры на детской площадке."},null,null,null,null,{"$f":"VLOOKUP(A55,ПТО!$A$2:$D$31,4,FALSE)","v":1045},null,{"$f":"VLOOKUP(A55,ПТО!$A$2:$D$31,2,FALSE)","v":"м.п."},{"$f":"VLOOKUP(A55,ПТО!$A$2:$D$31,3,FALSE)","v":210},null,null,null,null,null,"Монтаж гирлянд на световые опоры на детской площадке.",null,null,"ТР"]
[{"$f":"ПТО!A15","v":"Монтаж лестницы и калитки (вход на спортивную площадку)."},null,null,null,null,{"$f":"VLOOKUP(A56,ПТО!$A$2:$D$31,4,FALSE)","v":1800},null,{"$f":"VLOOKUP(A56,ПТО!$A$2:$D$31,2,FALSE)","v":"шт."},{"$f":"VLOOKUP(A56,ПТО!$A$2:$D$31,3,FALSE)","v":1},null,null,null,null,null,"Монтаж лестницы и калитки (вход на спортивную площадку).",null,null,"ТР"]
[{"$f":"ПТО!A16","v":"Установка новогодней елки"},null,null,null,null,{"$f":"VLOOKUP(A57,ПТО!$A$2:$D$31,4,FALSE)","v":986},null,{"$f":"VLOOKUP(A57,ПТО!$A$2:$D$31,2,FALSE)","v":"шт."},{"$f":"VLOOKUP(A57,ПТО!$A$2:$D$31,3,FALSE)","v":1},null,null,null,null,null,"Установка новогодней елки",null,null,"ТР"]
[{"$f":"ПТО!A17","v":0},null,null,null,null,{"$f":"VLOOKUP(A58,ПТО!$A$2:$D$31,4,FALSE)","v":{"$error":"#N/A"}},null,{"$f":"VLOOKUP(A58,ПТО!$A$2:$D$31,2,FALSE)","v":{"$error":"#N/A"}},{"$f":"VLOOKUP(A58,ПТО!$A$2:$D$31,3,FALSE)","v":{"$error":"#N/A"}},null,null,null,null,null,0,null,null,"ТР"]
[{"$f":"ПТО!A18","v":0},null,null,null,null,{"$f":"VLOOKUP(A59,ПТО!$A$2:$D$31,4,FALSE)","v":{"$error":"#N/A"}},null,{"$f":"VLOOKUP(A59,ПТО!$A$2:$D$31,2,FALSE)","v":{"$error":"#N/A"}},{"$f":"VLOOKUP(A59,ПТО!$A$2:$D$31,3,FALSE)","v":{"$error":"#N/A"}},null,null,null,null,null,0,null,null,"ТР"]
[{"$f":"ПТО!A19","v":0},null,null,null,null,{"$f":"VLOOKUP(A60,ПТО!$A$2:$D$31,4,FALSE)","v":{"$error":"#N/A"}},null,{"$f":"VLOOKUP(A60,ПТО!$A$2:$D$31,2,FALSE)","v":{"$error":"#N/A"}},{"$f":"VLOOKUP(A60,ПТО!$A$2:$D$31,3,FALSE)","v":{"$error":"#N/A"}},null,null,null,null,null,0,null,null,"ТР"]
[{"$f":"ПТО!A20","v":0},null,null,null,null,{"$f":"VLOOKUP(A61,ПТО!$A$2:$D$31,4,FALSE)","v":{"$error":"#N/A"}},null,{"$f":"VLOOKUP(A61,ПТО!$A$2:$D$31,2,FALSE)","v":{"$error":"#N/A"}},{"$f":"VLOOKUP(A61,ПТО!$A$2:$D$31,3,FALSE)","v":{"$error":"#N/A"}},null,null,null,null,null,0,null,null,"ТР"]
[{"$f":"ПТО!A21","v":0},null,null,null,null,{"$f":"VLOOKUP(A62,ПТО!$A$2:$D$31,4,FALSE)","v":{"$error":"#N/A"}},null,{"$f":"VLOOKUP(A62,ПТО!$A$2:$D$31,2,FALSE)","v":{"$error":"#N/A"}},{"$f":"VLOOKUP(A62,ПТО!$A$2:$D$31,3,FALSE)","v":{"$error":"#N/A"}},null,null,null,null,null,0,null,null,"ТР"]
[{"$f":"ПТО!A22","v":0},null,null,null,null,{"$f":"VLOOKUP(A63,ПТО!$A$2:$D$31,4,FALSE)","v":{"$error":"#N/A"}},null,{"$f":"VLOOKUP(A63,ПТО!$A$2:$D$31,2,FALSE)","v":{"$error":"#N/A"}},{"$f":"VLOOKUP(A63,ПТО!$A$2:$D$31,3,FALSE)","v":{"$error":"#N/A"}},null,null,null,null,null,0,null,null,"ТР"]
[{"$f":"ПТО!A23","v":0},null,null,null,null,{"$f":"VLOOKUP(A64,ПТО!$A$2:$D$31,4,FALSE)","v":{"$error":"#N/A"}},null,{"$f":"VLOOKUP(A64,ПТО!$A$2:$D$31,2,FALSE)","v":{"$error":"#N/A"}},{"$f":"VLOOKUP(A64,ПТО!$A$2:$D$31,3,FALSE)","v":{"$error":"#N/A"}},null,null,null,null,null,0,null,null,"ТР"]
[{"$f":"ПТО!A24","v":0},null,null,null,null,{"$f":"VLOOKUP(A65,ПТО!$A$2:$D$31,4,FALSE)","v":{"$error":"#N/A"}},null,{"$f":"VLOOKUP(A65,ПТО!$A$2:$D$31,2,FALSE)","v":{"$error":"#N/A"}},{"$f":"VLOOKUP(A65,ПТО!$A$2:$D$31,3,FALSE)","v":{"$error":"#N/A"}},null,null,null,null,null,0,null,null,"ТР"]
[{"$f":"ПТО!A25","v":0},null,null,null,null,{"$f":"VLOOKUP(A66,ПТО!$A$2:$D$31,4,FALSE)","v":{"$error":"#N/A"}},null,{"$f":"VLOOKUP(A66,ПТО!$A$2:$D$31,2,FALSE)","v":{"$error":"#N/A"}},{"$f":"VLOOKUP(A66,ПТО!$A$2:$D$31,3,FALSE)","v":{"$error":"#N/A"}},null,null,null,null,null,0,null,null,"ТР"]
[{"$f":"ПТО!A26","v":0},null,null,null,null,{"$f":"VLOOKUP(A67,ПТО!$A$2:$D$31,4,FALSE)","v":{"$error":"#N/A"}},null,{"$f":"VLOOKUP(A67,ПТО!$A$2:$D$31,2,FALSE)","v":{"$error":"#N/A"}},{"$f":"VLOOKUP(A67,ПТО!$A$2:$D$31,3,FALSE)","v":{"$error":"#N/A"}},null,null,null,null,null,0,null,null,"ТР"]
[{"$f":"ПТО!A27","v":0},null,null,null,null,{"$f":"VLOOKUP(A68,ПТО!$A$2:$D$31,4,FALSE)","v":{"$error":"#N/A"}},null,{"$f":"VLOOKUP(A68,ПТО!$A$2:$D$31,2,FALSE)","v":{"$error":"#N/A"}},{"$f":"VLOOKUP(A68,ПТО!$A$2:$D$31,3,FALSE)","v":{"$error":"#N/A"}},null,null,null,null,null,0,null,null,"ТР"]
[{"$f":"ПТО!A28","v":0},null,null,null,null,{"$f":"VLOOKUP(A69,ПТО!$A$2:$D$31,4,FALSE)","v":{"$error":"#N/A"}},null,{"$f":"VLOOKUP(A69,ПТО!$A$2:$D$31,2,FALSE)","v":{"$error":"#N/A"}},{"$f":"VLOOKUP(A69,ПТО!$A$2:$D$31,3,FALSE)","v":{"$error":"#N/A"}},null,null,null,null,null,0,null,null,"ТР"]
[{"$f":"ПТО!A29","v":0},null,null,null,null,{"$f":"VLOOKUP(A70,ПТО!$A$2:$D$31,4,FALSE)","v":{"$error":"#N/A"}},null,{"$f":"VLOOKUP(A70,ПТО!$A$2:$D$31,2,FALSE)","v":{"$error":"#N/A"}},{"$f":"VLOOKUP(A70,ПТО!$A$2:$D$31,3,FALSE)","v":{"$error":"#N/A"}},null,null,null,null,null,0,null,null,"ТР"]
[{"$f":"ПТО!A30","v":0},null,null,null,null,{"$f":"VLOOKUP(A71,ПТО!$A$2:$D$31,4,FALSE)","v":{"$error":"#N/A"}},null,{"$f":"VLOOKUP(A71,ПТО!$A$2:$D$31,2,FALSE)","v":{"$error":"#N/A"}},{"$f":"VLOOKUP(A71,ПТО!$A$2:$D$31,3,FALSE)","v":{"$error":"#N/A"}},null,null,null,null,null,0,null,null,"ТР"]
[{"$f":"ПТО!A31","v":0},null,null,null,null,{"$f":"VLOOKUP(A72,ПТО!$A$2:$D$31,4,FALSE)","v":{"$error":"#N/A"}},null,{"$f":"VLOOKUP(A72,ПТО!$A$2:$D$31,2,FALSE)","v":{"$error":"#N/A"}},{"$f":"VLOOKUP(A72,ПТО!$A$2:$D$31,3,FALSE)","v":{"$error":"#N/A"}},null,null,null,null,null,0,null,null,"ТР"]
["."]
["ПРЕТЕНЗИИ ПО КАЧЕСТВУ РАБОТ"]
["Количество поступивших претензий, ед.",null,null,null,null,null,null,null,null,{"$f":"VLOOKUP(O75,АО,3,FALSE)","v":0},null,null,null,null,"претензия1"]
["Количество удовлетворенных претензий, ед.",null,null,null,null,null,null,null,null,{"$f":"VLOOKUP(O76,АО,3,FALSE)","v":0},null,null,null,null,"претензия2"]
["Количество претензий, в удовлетворении которых отказано, ед.",null,null,null,null,null,null,null,null,{"$f":"VLOOKUP(O77,АО,3,FALSE)","v":0},null,null,null,null,"претензия3"]
["Сумма произведенного перерасчета, руб.",null,null,null,null,null,null,null,null,{"$f":"VLOOKUP(O78,АО,3,FALSE)","v":0},null,null,null,null,"претензия4"]
["."]
["КОММУНАЛЬНЫЕ УСЛУГИ"]
["Авансовые платежи потребителей (на начало периода), руб.",null,null,null,null,null,null,null,null,{"$f":"VLOOKUP(O81,АО,3,FALSE)","v":0},null,null,null,null,"ку1"]
["Переходящие остатки денежных средств (на начало периода), руб.",null,null,null,null,null,null,null,null,0,null,null,null,null,"ку2"]
["Задолженность потребителей (на начало периода), руб.",null,null,null,null,null,null,null,null,535274.59,null,null,null,null,"ку3"]
["Авансовые платежи потребителей (на конец периода), руб.",null,null,null,null,null,null,null,null,0,null,null,null,null,"ку4"]
["Переходящие остатки денежных средств (на конец периода), руб.",null,null,null,null,null,null,null,null,0,null,null,null,null,"ку5"]
["Задолженность потребителей (на конец периода), руб.",null,null,null,null,null,null,null,null,421513.06,null,null,null,null,"ку6"]
["Количество поступивших претензий, ед.",null,null,null,null,null,null,null,null,0,null,null,null,null,"ку7"]
["Количество удовлетворенных претензий, ед.",null,null,null,null,null,null,null,null,0,null,null,null,null,"ку8"]
["Количество претензий, в удовлетворении которых отказано, ед.",null,null,null,null,null,null,null,null,0,null,null,null,null,"ку9"]
["Сумма произведенного перерасчета, руб.",null,null,null,null,null,null,null,null,0,null,null,null,null,"ку10"]
["."]
["ОБЪЕМЫ ПО КОММУНАЛЬНЫМ УСЛУГАМ"]
["Вид коммунальной услуги",null,null,"Факт предоставления",null,"Ед.изм.","Начислено потребителям (руб.)"]
[{"$f":"IF(VLOOKUP(\"эл\",АО,3,FALSE)>0,\"Электроснабжение\",0)","v":"Электроснабжение"},null,null,{"$f":"IF(VLOOKUP(\"эл\",АО,3,FALSE)>0,VLOOKUP(\"эл\",АО,3,FALSE),0)","v":"Предоставляется"},null,{"$f":"IF(VLOOKUP(\"эл\",АО,3,FALSE)>0,VLOOKUP(\"эл\",АО,4,FALSE),0)","v":"кВт*ч"},{"$f":"VLOOKUP(\"эл\",АО,5,FALSE)","v":86806.11},null,null,null,{"$f":"VLOOKUP(\"эл\",АО,2,FALSE)","v":"Электроснабжение"}]
[{"$f":"IF(VLOOKUP(\"эл\",АО,3,FALSE)>0,VLOOKUP(\"эл1\",АО,2,FALSE),0)","v":"Общий объем потребления, нат. показ."},null,null,null,null,null,null,null,null,{"$f":"VLOOKUP(O95,АО,3,FALSE)","v":91374.85},null,null,null,null,"эл1"]
[{"$f":"IF(VLOOKUP(\"эл\",АО,3,FALSE)>0,VLOOKUP(\"эл2\",АО,2,FALSE),0)","v":"Оплачено потребителями, руб."},null,null,null,null,null,null,null,null,119278.81,null,null,null,null,"эл2"]
[{"$f":"IF(VLOOKUP(\"эл\",АО,3,FALSE)>0,VLOOKUP(\"эл3\",АО,2,FALSE),0)","v":"Задолженность потребителей, руб."},null,null,null,null,null,null,null,null,0,null,null,null,null,"эл3"]
[{"$f":"IF(VLOOKUP(\"эл\",АО,3,FALSE)>0,VLOOKUP(\"эл4\",АО,2,FALSE),0)","v":"Начислено поставщиком (поставщиками) коммунального ресурса, руб."},null,null,null,null,null,null,null,null,86806.11,null,null,null,null,"эл4"]
[{"$f":"IF(VLOOKUP(\"эл\",АО,3,FALSE)>0,VLOOKUP(\"эл5\",АО,2,FALSE),0)","v":"Оплачено поставщику (поставщикам) коммунального ресурса, руб."},null,null,null,null,null,null,null,null,86806.11,null,null,null,null,"эл5"]
[{"$f":"IF(VLOOKUP(\"эл\",АО,3,FALSE)>0,VLOOKUP(\"эл6\",АО,2,FALSE),0)","v":"Задолженность перед поставщиком (поставщиками) коммунального ресурса, руб."},null,null,null,null,null,null,null,null,0,null,null,null,null,"эл6"]
[{"$f":"IF(VLOOKUP(\"эл\",АО,3,FALSE)>0,VLOOKUP(\"эл7\",АО,2,FALSE),0)","v":"Размер пени и штрафов, уплаченных поставщику (поставщикам) коммунального ресурса, руб."},null,null,null,null,null,null,null,null,0,null,null,null,null,"эл7"]
[{"$f":"IF(VLOOKUP(\"хвс\",АО,3,FALSE)>0,\"Холодное водоснабжение\",0)","v":"Холодное водоснабжение"},null,null,{"$f":"IF(VLOOKUP(\"хвс\",АО,3,FALSE)>0,VLOOKUP(\"хвс\",АО,3,FALSE),0)","v":"Предоставляется"},null,{"$f":"IF(VLOOKUP(\"хвс\",АО,3,FALSE)>0,VLOOKUP(\"хвс\",АО,4,FALSE),0)","v":"куб.м."},{"$f":"VLOOKUP(\"хвс\",АО,5,FALSE)","v":58364.28}]
[{"$f":"IF(VLOOKUP(\"хвс\",АО,3,FALSE)>0,VLOOKUP(O103,АО,2,FALSE),0)","v":"Общий объем потребления, нат. показ."},null,null,null,null,null,null,null,null,{"$f":"VLOOKUP(O103,АО,3,FALSE)","v":4855.6000000000004},null,null,null,null,"хвс1"]
["Оплачено потребителями, руб.",null,null,null,null,null,null,null,null,54496.36,null,null,null,null,"хвс2"]
["Задолженность потребителей, руб.",null,null,null,null,null,null,null,null,3867.9199999999983,null,null,null,null,"хвс3"]
["Начислено поставщиком (поставщиками) коммунального ресурса, руб.",null,null,null,null,null,null,null,null,58364.28,null,null,null,null,"хвс4"]
["Оплачено поставщику (поставщикам) коммунального ресурса, руб.",null,null,null,null,null,null,null,null,58364.28,null,null,null,null,"хвс5"]
["Задолженность перед поставщиком (поставщиками) коммунального ресурса, руб.",null,null,null,null,null,null,null,null,0,null,null,null,null,"хвс6"]
["Размер пени и штрафов, уплаченных поставщику (поставщикам) коммунального ресурса, руб.",null,null,null,null,null,null,null,null,0,null,null,null,null,"хвс7"]
[{"$f":"IF(VLOOKUP(\"воо\",АО,3,FALSE)>0,\"Водоотведение\",0)","v":"Водоотведение"},null,null,{"$f":"IF(VLOOKUP(\"воо\",АО,3,FALSE)>0,VLOOKUP(\"воо\",АО,3,FALSE),0)","v":"Предоставляется"},null,{"$f":"IF(VLOOKUP(\"воо\",АО,3,FALSE)>0,VLOOKUP(\"воо\",АО,4,FALSE),0)","v":"куб.м."},{"$f":"VLOOKUP(\"воо\",АО,5,FALSE)","v":104892.68}]
[{"$f":"IF(VLOOKUP(\"воо\",АО,3,FALSE)>0,VLOOKUP(O111,АО,2,FALSE),0)","v":"Общий объем потребления, нат. показ."},null,null,null,null,null,null,null,null,{"$f":"VLOOKUP(O111,АО,3,FALSE)","v":8147},null,null,null,null,"воо1"]
["Оплачено потребителями, руб.",null,null,null,null,null,null,null,null,92197.19,null,null,null,null,"воо2"]
["Задолженность потребителей, руб.",null,null,null,null,null,null,null,null,12695.489999999991,null,null,null,null,"воо3"]
["Начислено поставщиком (поставщиками) коммунального ресурса, руб.",null,null,null,null,null,null,null,null,104892.68,null,null,null,null,"воо4"]
["Оплачено поставщику (поставщикам) коммунального ресурса, руб.",null,null,null,null,null,null,null,null,104892.68,null,null,null,null,"воо5"]
["Задолженность перед поставщиком (поставщиками) коммунального ресурса, руб.",null,null,null,null,null,null,null,null,0,null,null,null,null,"воо6"]
["Размер пени и штрафов, уплаченных поставщику (поставщикам) коммунального ресурса, руб.",null,null,null,null,null,null,null,null,0,null,null,null,null,"воо7"]
[{"$f":"IF(VLOOKUP(\"тко\",АО,3,FALSE)>0,\"Обращение с ТКО\",0)","v":0},null,null,{"$f":"IF(VLOOKUP(\"тко\",АО,3,FALSE)>0,VLOOKUP(\"тко\",АО,3,FALSE),0)","v":0},null,{"$f":"IF(VLOOKUP(\"тко\",АО,3,FALSE)>0,VLOOKUP(\"тко\",АО,4,FALSE),0)","v":0},{"$f":"VLOOKUP(\"тко\",АО,5,FALSE)","v":0}]
[{"$f":"IF(VLOOKUP(\"тко\",АО,3,FALSE)>0,VLOOKUP(O119,АО,2,FALSE),0)","v":0},null,null,null,null,null,null,null,null,{"$f":"VLOOKUP(O119,АО,3,FALSE)","v":0},null,null,null,null,"тко1"]
[0,null,null,null,null,null,null,null,null,0,null,null,null,null,"тко2"]
[0,null,null,null,null,null,null,null,null,0,null,null,null,null,"тко3"]
[0,null,null,null,null,null,null,null,null,0,null,null,null,null,"тко4"]
[0,null,null,null,null,null,null,null,null,0,null,null,null,null,"тко5"]
[0,null,null,null,null,null,null,null,null,0,null,null,null,null,"тко6"]
[0,null,null,null,null,null,null,null,null,0,null,null,null,null,"тко7"]
[{"$f":"IF(VLOOKUP(\"гвс\",АО,3,FALSE)>0,\"Горячее водоснабжение\",0)","v":0},null,null,{"$f":"IF(VLOOKUP(\"гвс\",АО,3,FALSE)>0,VLOOKUP(\"гвс\",АО,3,FALSE),0)","v":0},null,{"$f":"IF(VLOOKUP(\"гвс\",АО,3,FALSE)>0,VLOOKUP(\"гвс\",АО,4,FALSE),0)","v":0},{"$f":"VLOOKUP(\"гвс\",АО,5,FALSE)","v":0}]
[{"$f":"IF(VLOOKUP(\"гвс\",АО,3,FALSE)>0,VLOOKUP(O127,АО,2,FALSE),0)","v":0},null,null,null,null,null,null,null,null,{"$f":"VLOOKUP(O127,АО,3,FALSE)","v":0},null,null,null,null,"гвс1"]
[0,null,null,null,null,null,null,null,null,0,null,null,null,null,"гвс2"]
[0,null,null,null,null,null,null,null,null,0,null,null,null,null,"гвс3"]
[0,null,null,null,null,null,null,null,null,0,null,null,null,null,"гвс4"]
[0,null,null,null,null,null,null,null,null,0,null,null,null,null,"гвс5"]
[0,null,null,null,null,null,null,null,null,0,null,null,null,null,"гвс6"]
[0,null,null,null,null,null,null,null,null,0,null,null,null,null,"гвс7"]
[{"$f":"IF(VLOOKUP(\"отопление\",АО,3,FALSE)>0,\"Отопление\",0)","v":"Отопление"},null,null,{"$f":"IF(VLOOKUP(\"отопление\",АО,3,FALSE)>0,VLOOKUP(\"отопление\",АО,3,FALSE),0)","v":"Предоставляется"},null,{"$f":"IF(VLOOKUP(\"отопление\",АО,3,FALSE)>0,VLOOKUP(\"отопление\",АО,4,FALSE),0)","v":"Гкал"},{"$f":"VLOOKUP(\"отопление\",АО,5,FALSE)","v":837467.8}]
[{"$f":"IF(VLOOKUP(\"отопление\",АО,3,FALSE)>0,VLOOKUP(O135,АО,2,FALSE),0)","v":"Общий объем потребления, нат. показ."},null,null,null,null,null,null,null,null,{"$f":"VLOOKUP(O135,АО,3,FALSE)","v":737.42},null,null,null,null,"отопление1"]
["Оплачено потребителями, руб.",null,null,null,null,null,null,null,null,908202.43,null,null,null,null,"отопление2"]
["Задолженность потребителей, руб.",null,null,null,null,null,null,null,null,0,null,null,null,null,"отопление3"]
["Начислено поставщиком (поставщиками) коммунального ресурса, руб.",null,null,null,null,null,null,null,null,837467.8,null,null,null,null,"отопление4"]
["Оплачено поставщику (поставщикам) коммунального ресурса, руб.",null,null,null,null,null,null,null,null,837467.8,null,null,null,null,"отопление5"]
["Задолженность перед поставщиком (поставщиками) коммунального ресурса, руб.",null,null,null,null,null,null,null,null,0,null,null,null,null,"отопление6"]
["Размер пени и штрафов, уплаченных поставщику (поставщикам) коммунального ресурса, руб.",null,null,null,null,null,null,null,null,0,null,null,null,null,"отопление7"]
[]
["ПРЕТЕНЗИОННО-ИСКОВАЯ РАБОТА"]
["Направлено претензий потребителям-должникам",null,null,null,null,null,null,null,null,{"$f":"VLOOKUP(O144,юр,3,FALSE)","v":0},null,null,null,null,"юр1"]
["Направлено исковых заявлений",null,null,null,null,null,null,null,null,{"$f":"VLOOKUP(O145,юр,3,FALSE)","v":3},null,null,null,null,"юр2"]
["Получено денежных средств по результатам претензионно-исковой работы, руб.",null,null,null,null,null,null,null,null,{"$f":"VLOOKUP(O146,юр,3,FALSE)","v":98453},null,null,null,null,"юр3"]
[]
[]
["Отчет об исполнении договора управления многоквартирного дома \nБайкальская, 307 в части текущего ремонта"]
[]
["Начала отчетного периода",null,null,null,"2016-01-01"]
["Конец отчетного периода",null,null,null,"2016-12-31"]
[]
["Перерасход (+) или экономия \n(-) средств в 2015 году (руб.)",null,null,null,{"$f":"ПТО!G1","v":31243.46}]
["Начислено за  текущий ремонт в 2016 году (руб.):",null,null,null,{"$f":"J13","v":127442.4}]
[null,null,null,null,null,null,null,null,null,null,null,null,null,{"$f":"INDEX($O$28:$O$42,SMALL(IF(#REF!=R28:R42,ROW(O28:O52)-27,\"\"),ROW()-133))","v":{"$error":"#REF!"}}]
["Наименование работы",null,null,null,null,"Годовая фактическая стоимость работ/услуг (руб.)",null,"Периодичность выполнения работ/оказания услуг","Количество работ (услуг) в детальном перечне"]
[{"$f":"IF(N158>0,N158,0)","v":"Корректировка платы за отопление."},null,null,null,null,{"$f":"IF(ISERROR(VLOOKUP(A158,$A$28:$J$72,6,FALSE)),0,VLOOKUP(A158,$A$28:$J$72,6,FALSE))","v":-75094.78},null,{"$f":"VLOOKUP(A158,$A$28:$J$72,8,FALSE)","v":" Гкал"},{"$f":"VLOOKUP(A158,$A$28:$J$72,9,FALSE)","v":75.86},null,null,null,"ТР",{"$f":"INDEX($O$43:$O$72,SMALL(IF($M$158=R43:R72,ROW(O43:O72)-42,\"\"),ROW()-157))","v":"Корректировка платы за отопление."}]
["Техническое освидетельствование лифта.",null,null,null,null,15000,null,"шт.",2,null,null,null,"ТР","Техническое освидетельствование лифта."]
["Вывоз снега с придомовой территории в феврале.",null,null,null,null,7798.35,null,"м/час",31,null,null,null,"ТР","Вывоз снега с придомовой территории в феврале."]
[{"$f":"IF(N161>0,N161,0)","v":"Проектирование, монтаж узла учета тепловой энергии."},null,null,null,null,120319.41,null,"шт.",1,null,null,null,"ТР","Проектирование, монтаж узла учета тепловой энергии."]
["Благоустройство территории (посадка цветов).",null,null,null,null,537,null,"шт.",{"$f":"VLOOKUP(A162,$A$28:$J$72,9,FALSE)","v":23},null,null,null,"ТР","Благоустройство территории (посадка цветов)."]
["Замена платы привода дверей в пассажирском лифте.",null,null,null,null,26950,null,"шт.",{"$f":"VLOOKUP(A163,$A$28:$J$72,9,FALSE)","v":1},null,null,null,"ТР","Замена платы привода дверей в пассажирском лифте."]
[{"$f":"IF(N164>0,N164,0)","v":"Монтаж охранной сигнализации ИТП."},null,null,null,null,{"$f":"IF(ISERROR(VLOOKUP(A164,$A$28:$J$72,6,FALSE)),0,VLOOKUP(A164,$A$28:$J$72,6,FALSE))","v":17233},null,"шт.",{"$f":"VLOOKUP(A164,$A$28:$J$72,9,FALSE)","v":1},null,null,null,"ТР","Монтаж охранной сигнализации ИТП."]
["Монтаж дверей (вход в подвал).",null,null,null,null,26000,null,"шт.",2,null,null,null,"ТР","Монтаж дверей (вход в подвал)."]
["Восстановление радиаторов отопления в подъезде в замен украденных.",null,null,null,null,34670,null,"секций",57,null,null,null,"ТР","Восстановление радиаторов отопления в подъезде в замен украденных."]
["Покраска стен в подъезде в цокольном и на 1-ом этаже.",null,null,null,null,4960,null,"м2",189.5,null,null,null,"ТР","Покраска стен в подъезде в цокольном и на 1-ом этаже."]
["Монтаж щетинистого покрытия на крыльце.",null,null,null,null,3900,null,"м.п.",14,null,null,null,"ТР","Монтаж щетинистого покрытия на крыльце."]
["Устройство катка на детской площадке.",null,null,null,null,2136,null,"шт.",1,null,null,null,"ТР","Устройство катка на детской площадке."]
["Монтаж гирлянд на световые опоры на детской площадке.",null,null,null,null,1045,null,"м.п.",210,null,null,null,"ТР","Монтаж гирлянд на световые опоры на детской площадке."]
["Монтаж лестницы и калитки (вход на спортивную площадку).",null,null,null,null,1800,null,"шт.",1,null,null,null,"ТР","Монтаж лестницы и калитки (вход на спортивную площадку)."]
["Установка новогодней елки",null,null,null,null,986,null,"шт.",1,null,null,null,"ТР","Установка новогодней елки"]
[0,null,null,null,null,0,null,{"$error":"#N/A"},{"$error":"#N/A"},null,null,null,"ТР",0]
[0,null,null,null,null,0,null,{"$error":"#N/A"},{"$error":"#N/A"},null,null,null,"ТР",0]
[0,null,null,null,null,0,null,{"$error":"#N/A"},{"$error":"#N/A"},null,null,null,"ТР",0]
[0,null,null,null,null,0,null,{"$error":"#N/A"},{"$error":"#N/A"},null,null,null,"ТР",0]
[0,null,null,null,null,0,null,{"$error":"#N/A"},{"$error":"#N/A"},null,null,null,"ТР",0]
[0,null,null,null,null,0,null,{"$error":"#N/A"},{"$error":"#N/A"},null,null,null,"ТР",0]
[0,null,null,null,null,0,null,{"$error":"#N/A"},{"$error":"#N/A"},null,null,null,"ТР",0]
[0,null,null,null,null,0,null,{"$error":"#N/A"},{"$error":"#N/A"},null,null,null,"ТР",0]
[0,null,null,null,null,0,null,{"$error":"#N/A"},{"$error":"#N/A"},null,null,null,"ТР",0]
[0,null,null,null,null,0,null,{"$error":"#N/A"},{"$error":"#N/A"},null,null,null,"ТР",0]
[0,null,null,null,null,0,null,{"$error":"#N/A"},{"$error":"#N/A"},null,null,null,"ТР",0]
[0,null,null,null,null,0,null,{"$error":"#N/A"},{"$error":"#N/A"},null,null,null,"ТР",0]
[0,null,null,null,null,0,null,{"$error":"#N/A"},{"$error":"#N/A"},null,null,null,"ТР",0]
[{"$f":"IF(N186>0,N186,0)","v":0},null,null,null,null,0,null,{"$error":"#N/A"},{"$error":"#N/A"},null,null,null,"ТР",0]
[0,null,null,null,null,0,null,{"$error":"#N/A"},{"$error":"#N/A"},null,null,null,"ТР",0]
["."]
["."]
["Итого выполнено работ в 2016 году (руб.):",null,null,null,{"$f":"SUM(F158:G187)","v":188239.98}]
["Перерасход (+) или экономия \n(-) средств по состоянию на 31 декабря 2016 года (руб.):",null,null,null,{"$f":"E190+E154-E155","v":92041.040000000008}]
["."]
["В 2017 году управляющая компания предлагает выполнить за счет средств текущего ремонта общего имущества многоквартирного дома следующие мероприятия (приблизительной стоимостью):"]
[{"$f":"ПТО!F12","v":" - поверка (замена) манометров и термометров"},null,null,null,null,null,null,{"$f":"ПТО!G12","v":2500},"руб."]
[{"$f":"ПТО!F13","v":" - обслуживание ТП и кабельных линий"},null,null,null,null,null,null,{"$f":"ПТО!G13","v":6000},"руб."]
[{"$f":"ПТО!F14","v":" - передача бесхозяйных инженерных сетей"},null,null,null,null,null,null,{"$f":"ПТО!G14","v":5000},"руб."]
[{"$f":"ПТО!F15","v":" - непредвиденные затраты (компенсаторы, арматура, эл.арматура, замки и т.д.)"},null,null,null,null,null,null,{"$f":"ПТО!G15","v":5000},"руб."]
[{"$f":"ПТО!F16","v":" - мероприятия по энергоресурсосбережению"},null,null,null,null,null,null,{"$f":"ПТО!G16","v":20000},"руб."]
[{"$f":"ПТО!F17","v":" - установка новогодней елки"},null,null,null,null,null,null,{"$f":"ПТО!G17","v":1500},"руб."]
[{"$f":"ПТО!F18","v":" - благоустройство территории (посадка цветов, саженцев, покраска бордюров)"},null,null,null,null,null,null,{"$f":"ПТО!G18","v":14000},"руб."]
[{"$f":"ПТО!F19","v":" - монтаж урны"},null,null,null,null,null,null,{"$f":"ПТО!G19","v":4000},"руб."]
[{"$f":"ПТО!F20","v":" - монтаж детского спортивного оборудования"},null,null,null,null,null,null,{"$f":"ПТО!G20","v":30000},"руб."]
[{"$f":"ПТО!F21","v":" - монтаж дополнительного уличного освещения"},null,null,null,null,null,null,{"$f":"ПТО!G21","v":15000},"руб."]
[{"$f":"ПТО!F22","v":" - монтаж щетинистого и коврового покрытия"},null,null,null,null,null,null,{"$f":"ПТО!G22","v":5000},"руб."]
[{"$f":"ПТО!F23","v":" - покраска распределительных узлов"},null,null,null,null,null,null,{"$f":"ПТО!G23","v":3000},"руб."]
[{"$f":"ПТО!F24","v":" - замена подвальных дверей на антивандальные"},null,null,null,null,null,null,{"$f":"ПТО!G24","v":24000},"руб."]
[{"$f":"ПТО!F25","v":" - монтаж ограждения "},null,null,null,null,null,null,{"$f":"ПТО!G25","v":10000},"руб."]
[{"$f":"ПТО!F26","v":" - вывоз снега с придомовой территории"},null,null,null,null,null,null,{"$f":"ПТО!G26","v":15000},"руб."]
[{"$f":"ПТО!F27","v":" - монтаж сетки забора на детской площадке"},null,null,null,null,null,null,{"$f":"ПТО!G27","v":10000},"руб."]
[{"$f":"ПТО!F28","v":" - восстановление дверных ручек дверей на проходных балконов"},null,null,null,null,null,null,{"$f":"ПТО!G28","v":4000},"руб."]
[{"$f":"ПТО!F29","v":" - монтаж видеонаблюдения"},null,null,null,null,null,null,{"$f":"ПТО!G29","v":200000},"руб."]
[{"$f":"ПТО!F30","v":0},null,null,null,null,null,null,{"$f":"ПТО!G30","v":0},"руб."]
[{"$f":"ПТО!F31","v":0},null,null,null,null,null,null,{"$f":"ПТО!G31","v":0},"руб."]
[" ИТОГО  ориентировочно:",null,null,null,null,null,null,{"$f":"SUM(H194:H213)","v":374000},"рублей"]

{"sheet":"ПТО","index":1,"n_rows":53,"n_cols":16,"rows_kept":53,"cut":false,"hidden":true,"merged":[]}
["Наименование работы","Периодичность выполнения работ/оказания услуг","Количество работ (услуг) в детальном перечне","Годовая фактическая стоимость работ/услуг (руб.)",null,"Перерасход (+) или экономия \n(-) средств в 2015 году (руб.)",31243.46]
["Корректировка платы за отопление."," Гкал",75.86,-75094.78,null,null,null,null,null,null,null,{"$f":"IF(A2>0,\"ТР\",0)","v":"ТР"}]
["Техническое освидетельствование лифта.","шт.",2,15000,null,null,null,null,null,null,null,"ТР"]
["Вывоз снега с придомовой территории в феврале.","м/час",31,7798.35,null,null,null,null,null,null,null,"ТР"]
["Проектирование, монтаж узла учета тепловой энергии.","шт.",1,120319.41,null,null,null,null,null,null,null,"ТР"]
["Благоустройство территории (посадка цветов).","шт.",23,537,null,null,null,null,null,null,null,"ТР"]
["Замена платы привода дверей в пассажирском лифте.","шт.",1,26950,null,null,null,null,null,null,null,"ТР"]
["Монтаж охранной сигнализации ИТП.","шт.",1,17233,null,null,null,null,null,null,null,"ТР"]
["Монтаж дверей (вход в подвал).","шт.",2,26000,null,null,null,null,null,null,null,"ТР"]
["Восстановление радиаторов отопления в подъезде в замен украденных.","секций",57,34670,null,null,null,null,null,null,null,"ТР"]
["Покраска стен в подъезде в цокольном и на 1-ом этаже.","м2",189.5,4960,null,"В 2020 году управляющая компания предлагает выполнить за счет средств текущего ремонта общего имущества многоквартирного дома следующие мероприятия (приблизительной стоимостью):",null,null,null,null,null,"ТР"]
["Монтаж щетинистого покрытия на крыльце.","м.п.",14,3900,null," - поверка (замена) манометров и термометров",2500,null,null,null,null,"ТР"]
["Устройство катка на детской площадке.","шт.",1,2136,null," - обслуживание ТП и кабельных линий",6000,null,null,null,null,"ТР"]
["Монтаж гирлянд на световые опоры на детской площадке.","м.п.",210,1045,null," - передача бесхозяйных инженерных сетей",5000,null,null,null,null,"ТР"]
["Монтаж лестницы и калитки (вход на спортивную площадку).","шт.",1,1800,null," - непредвиденные затраты (компенсаторы, арматура, эл.арматура, замки и т.д.)",5000,null,null,null,null,"ТР"]
["Установка новогодней елки","шт.",1,986,null," - мероприятия по энергоресурсосбережению",20000,null,null,null,null,"ТР"]
[null,null,null,null,null," - установка новогодней елки",1500,null,null,null,null,0]
[null,null,null,null,null," - благоустройство территории (посадка цветов, саженцев, покраска бордюров)",{"$f":"4000+5000+5000","v":14000},null,null,null,null,0]
[null,null,null,null,null," - монтаж урны",4000,null,null,null,null,0]
[null,null,null,null,null," - монтаж детского спортивного оборудования",30000,null,null,null,null,0]
[null,null,null,null,null," - монтаж дополнительного уличного освещения",15000,null,null,null,null,0]
[null,null,null,null,null," - монтаж щетинистого и коврового покрытия",5000,null,null,null,null,0]
[null,null,null,null,null," - покраска распределительных узлов",3000,null,null,null,null,{"$f":"IF(A23>0,\"ТР\",0)","v":0}]
[null,null,null,null,null," - замена подвальных дверей на антивандальные",24000,null,null,null,null,0]
[null,null,null,null,null," - монтаж ограждения ",10000,null,null,null,null,0]
[null,null,null,null,null," - вывоз снега с придомовой территории",15000,null,null,null,null,0]
[null,null,null,null,null," - монтаж сетки забора на детской площадке",10000,null,null,null,null,0]
[null,null,null,null,null," - восстановление дверных ручек дверей на проходных балконов",4000,null,null,null,null,0]
[null,null,null,null,null," - монтаж видеонаблюдения",200000,null,null,null,null,0]
[null,null,null,null,null,null,null,null,null,null,null,0]
[null,null,null,null,null,null,null,null,null,null,null,0]
[]
[]
[]
[]
[]
[]
[]
["Работы, выполняемые для надлежащего содержания внутридомовых инженерных систем и конструктивных элементов дома",445334.1,"Ежемесячно",12,null,null,null,null,null,null,null,{"$f":"IF(A39>0,\"СОД\",0)","v":"СОД"},{"$f":"A39","v":"Работы, выполняемые для надлежащего содержания внутридомовых инженерных систем и конструктивных элементов дома"},{"$f":"B39","v":445334.1},{"$f":"C39","v":"Ежемесячно"},{"$f":"D39","v":12}]
["Работы по содержанию лифта (лифтов)",168000,"Ежемесячно",12,null,null,null,null,null,null,null,{"$f":"IF(A40>0,\"СОД\",0)","v":"СОД"},{"$f":"A40","v":"Работы по содержанию лифта (лифтов)"},{"$f":"B40","v":168000},{"$f":"C40","v":"Ежемесячно"},{"$f":"D40","v":12}]
["Работы по содержанию земельного участка с элементами озеленения и благоустройства, иными объектами, предназначенными для обслуживания и эксплуатации многоквартирного дома",55377.93,"В соответствии с графиком",12,null,null,null,null,null,null,null,"СОД","Работы по содержанию земельного участка с элементами озеленения и благоустройства, иными объектами, предназначенными для обслуживания и эксплуатации многоквартирного дома",55377.93,"В соответствии с графиком",12]
["Работы, выполняемые для надлежащего содержания электрооборудования дома",73279.38,"Ежемесячно",12,null,null,null,null,null,null,null,"СОД","Работы, выполняемые для надлежащего содержания электрооборудования дома",73279.38,"Ежемесячно",12]
[null,null,null,null,null,null,null,null,null,null,null,0,0,0,0,0]
["Обеспечение устранения аварий на внутридомовых инженерных системах в многоквартирном доме",50331.48,"Круглосуточно",12,null,null,null,null,null,null,null,"СОД","Обеспечение устранения аварий на внутридомовых инженерных системах в многоквартирном доме",50331.48,"Круглосуточно",12]
["Работы по содержанию помещений, входящих в состав общего имущества в многоквартирном доме",155538.21,"В соответствии с графиком",12,null,null,null,null,null,null,null,"СОД","Работы по содержанию помещений, входящих в состав общего имущества в многоквартирном доме",155538.21,"В соответствии с графиком",12]
["Расходы на содержание информационных систем, обеспечивающих сбор, обработку и хранение данных о платежах, выставление платежных документов, снятие показаний приборов учета и т.п.",63256.24,"Ежемесячно",12,null,null,null,null,null,null,null,"СОД","Расходы на содержание информационных систем, обеспечивающих сбор, обработку и хранение данных о платежах, выставление платежных документов, снятие показаний приборов учета и т.п.",63256.24,"Ежемесячно",12]
["Работы по обеспечению вывоза бытовых отходов",111646.58,"В соответствии с графиком",12,null,null,null,null,null,null,null,"СОД","Работы по обеспечению вывоза бытовых отходов",111646.58,"В соответствии с графиком",12]
[null,null,null,null,null,null,null,null,null,null,null,0,0,0,0,0]
[null,null,null,null,null,null,null,null,null,null,null,0,0,0,0,0]
[null,null,null,null,null,null,null,null,null,null,null,0,0,0,0,0]
[null,null,null,null,null,null,null,null,null,null,null,0,0,0,0,0]
[null,null,null,null,null,null,null,null,null,null,null,0,0,0,0,0]
[null,null,null,null,null,null,null,null,null,null,null,0,0,0,0,0]

{"sheet":"Абонентский отдел","index":2,"n_rows":84,"n_cols":6,"rows_kept":84,"cut":false,"hidden":true,"merged":[[36,12,59,12],[24,12,33,12],[19,12,22,12]]}
[null,"ОБЩАЯ ИНФОРМАЦИЯ"]
["общая1","Авансовые платежи потребителей (на начало периода), руб.",0,"указать в случае переплаты на начало отчетного года"]
["общая2","Переходящие остатки денежных средств (на начало периода), руб.",0,"указывать ничего не нужно"]
["общая3","Задолженность потребителей (на начало периода), руб.",290389.84000000003,"указать в случае задолженности на начало отчетного года"]
["общая4","Начислено за услуги (работы) по содержанию и текущему ремонту, в том числе:",{"$f":"SUM(C6:C8)","v":1021952.59},"указывать ничего не нужно"]
["общая5","за содержание дома, руб.",894510.19,"указать сумму начислений по содержанию за отчетный год"]
["общая6","за текущий ремонт, руб.",127442.4,"указать сумму начислений по ремонту за отчетный год"]
["общая7","за услуги управления, руб.",0,"указать сумму начислений за услуги по управлению за отчетный год"]
["общая8","Получено денежных средств, в том числе:",{"$f":"SUM(C10:C14)","v":1111262.74},"указывать ничего не нужно"]
["общая9","денежных средств от собственников/нанимателей помещений, руб.",1111262.74,"указать в случае оплаты"]
["общая10","целевых взносов от собственников/нанимателей помещений, руб.",0,"указать в случае оплаты"]
["общая11","субсидий, руб.",0,"указать в случае оплаты"]
["общая12","денежных средств от использования общего имущества, руб.",0,"указать в случае оплаты"]
["общая13","прочие поступления, руб.",0,"указать в случае оплаты"]
["общая14","Всего денежных средств с учетом остатков, руб.",{"$f":"C9","v":1111262.74},"указывать ничего не нужно"]
["общая15","Авансовые платежи потребителей (на конец периода), руб.",{"$f":"IF(C2>0,IF(C2+C9-C5>0,C2+C9-C5,0),IF(C9-C5>0,IF(C4+C5-C9>0,0,C9-C5-C4),0))","v":0},"указывать ничего не нужно"]
["общая16","Переходящие остатки денежных средств (на конец периода), руб.",0,"указывать ничего не нужно"]
["общая17","Задолженность потребителей (на конец периода), руб.",{"$f":"IF(C16>0,0,IF(C4>0,C4+C5-C9,C5-C2-C9))","v":201079.68999999994},"указывать ничего не нужно"]
["пр","ПРЕТЕНЗИИ ПО КАЧЕСТВУ РАБОТ"]
["претензия1","Количество поступивших претензий, ед.",0,"указать в случае наличия"]
["претензия2","Количество удовлетворенных претензий, ед.",0,"указать в случае наличия"]
["претензия3","Количество претензий, в удовлетворении которых отказано, ед.",0,"указать в случае наличия"]
["претензия4","Сумма произведенного перерасчета, руб.",0,"указать в случае наличия"]
["ку","КОММУНАЛЬНЫЕ УСЛУГИ"]
["ку1","Авансовые платежи потребителей (на начало периода), руб.",0,"указать в случае переплаты на начало отчетного года"]
["ку2","Переходящие остатки денежных средств (на начало периода), руб.",0,"указывать ничего не нужно"]
["ку3","Задолженность потребителей (на начало периода), руб.",535274.59,"указать в случае задолженности на начало отчетного года"]
["ку4","Авансовые платежи потребителей (на конец периода), руб.",0,"указать в случае переплаты на конец отчетного года"]
["ку5","Переходящие остатки денежных средств (на конец периода), руб.",0,"указывать ничего не нужно"]
["ку6","Задолженность потребителей (на конец периода), руб.",421513.06,"указать в случае задолженности на конец отчетного года"]
["ку7","Количество поступивших претензий, ед.",0,"указать в случае наличия"]
["ку8","Количество удовлетворенных претензий, ед.",0,"указать в случае наличия"]
["ку9","Количество претензий, в удовлетворении которых отказано, ед.",0,"указать в случае наличия"]
["ку10","Сумма произведенного перерасчета, руб.",0,"указать в случае наличия"]
["о","ОБЪЕМЫ ПО КОММУНАЛЬНЫМ УСЛУГАМ"]
["о1","Вид коммунальной услуги","Факт предоставления","Ед.изм.","Начислено потребителям (руб.)"]
["эл","Электроснабжение",{"$f":"IF(E37>0,\"Предоставляется\",0)","v":"Предоставляется"},"кВт*ч",86806.11,"указать сумму начисления жителям со стороны УК"]
["эл1","Общий объем потребления, нат. показ.",91374.85,"указать объем потребления кВт*ч"]
["эл2","Оплачено потребителями, руб.",119278.81,"указать сумму оплаты за услугу жителями"]
["эл3","Задолженность потребителей, руб.",{"$f":"IF(E37-C39<0,0,E37-C39)","v":0},"указывать ничего не нужно"]
["эл4","Начислено поставщиком (поставщиками) коммунального ресурса, руб.",{"$f":"E37","v":86806.11},"указывать ничего не нужно"]
["эл5","Оплачено поставщику (поставщикам) коммунального ресурса, руб.",{"$f":"E37","v":86806.11},"указывать ничего не нужно"]
["эл6","Задолженность перед поставщиком (поставщиками) коммунального ресурса, руб.",{"$f":"IF(C41-C42<=0,,C41-C42)","v":0},"указывать ничего не нужно"]
["эл7","Размер пени и штрафов, уплаченных поставщику (поставщикам) коммунального ресурса, руб.",0,"указывать ничего не нужно"]
["хвс","Холодное водоснабжение",{"$f":"IF(E45>0,\"Предоставляется\",0)","v":"Предоставляется"},"куб.м.",58364.28,"указать сумму начисления жителям со стороны УК"]
["хвс1","Общий объем потребления, нат. показ.",4855.6000000000004,"указать объем потребления куб.м."]
["хвс2","Оплачено потребителями, руб.",54496.36,"указать сумму оплаты за услугу жителями"]
["хвс3","Задолженность потребителей, руб.",{"$f":"IF(E45-C47<0,0,E45-C47)","v":3867.9199999999983},"указывать ничего не нужно"]
["хвс4","Начислено поставщиком (поставщиками) коммунального ресурса, руб.",{"$f":"E45","v":58364.28},"указывать ничего не нужно"]
["хвс5","Оплачено поставщику (поставщикам) коммунального ресурса, руб.",{"$f":"E45","v":58364.28},"указывать ничего не нужно"]
["хвс6","Задолженность перед поставщиком (поставщиками) коммунального ресурса, руб.",{"$f":"IF(C49-C50<=0,,C49-C50)","v":0},"указывать ничего не нужно"]
["хвс7","Размер пени и штрафов, уплаченных поставщику (поставщикам) коммунального ресурса, руб.",0,"указывать ничего не нужно"]
["воо","Водоотведение ",{"$f":"IF(E53>0,\"Предоставляется\",0)","v":"Предоставляется"},"куб.м.",104892.68,"указать сумму начисления жителям со стороны УК"]
["воо1","Общий объем потребления, нат. показ.",8147,"указать объем потребления куб.м."]
["воо2","Оплачено потребителями, руб.",92197.19,"указать сумму оплаты за услугу жителями"]
["воо3","Задолженность потребителей, руб.",{"$f":"IF(E53-C55<0,0,E53-C55)","v":12695.489999999991},"указывать ничего не нужно"]
["воо4","Начислено поставщиком (поставщиками) коммунального ресурса, руб.",{"$f":"E53","v":104892.68},"указывать ничего не нужно"]
["воо5","Оплачено поставщику (поставщикам) коммунального ресурса, руб.",{"$f":"E53","v":104892.68},"указывать ничего не нужно"]
["воо6","Задолженность перед поставщиком (поставщиками) коммунального ресурса, руб.",{"$f":"IF(C57-C58<=0,,C57-C58)","v":0},"указывать ничего не нужно"]
["воо7","Размер пени и штрафов, уплаченных поставщику (поставщикам) коммунального ресурса, руб.",0,"указывать ничего не нужно"]
["тко","Обращение с ТКО",{"$f":"IF(E61>0,\"Предоставляется\",0)","v":0},"куб.м.",0,"указать сумму начисления жителям со стороны УК"]
["тко1","Общий объем потребления, нат. показ.",0,"указать объем потребления куб.м."]
["тко2","Оплачено потребителями, руб.",0,"указать сумму оплаты за услугу жителями"]
["тко3","Задолженность потребителей, руб.",{"$f":"IF(E61-C63<0,0,E61-C63)","v":0},"указывать ничего не нужно"]
["тко4","Начислено поставщиком (поставщиками) коммунального ресурса, руб.",{"$f":"E61","v":0},"указывать ничего не нужно"]
["тко5","Оплачено поставщику (поставщикам) коммунального ресурса, руб.",{"$f":"E61","v":0},"указывать ничего не нужно"]
["тко6","Задолженность перед поставщиком (поставщиками) коммунального ресурса, руб.",{"$f":"IF(C65-C66<=0,,C65-C66)","v":0},"указывать ничего не нужно"]
["тко7","Размер пени и штрафов, уплаченных поставщику (поставщикам) коммунального ресурса, руб.",0,"указывать ничего не нужно"]
["гвс","Горячее водоснабжение",{"$f":"IF(E69>0,\"Предоставляется\",0)","v":0},"куб.м.",0,"указать сумму начисления жителям со стороны УК"]
["гвс1","Общий объем потребления, нат. показ.",0,"указать объем потребления куб.м."]
["гвс2","Оплачено потребителями, руб.",0,"указать сумму оплаты за услугу жителями"]
["гвс3","Задолженность потребителей, руб.",{"$f":"IF(E69-C71<0,0,E69-C71)","v":0},"указывать ничего не нужно"]
["гвс4","Начислено поставщиком (поставщиками) коммунального ресурса, руб.",{"$f":"E69","v":0},"указывать ничего не нужно"]
["гвс5","Оплачено поставщику (поставщикам) коммунального ресурса, руб.",{"$f":"E69","v":0},"указывать ничего не нужно"]
["гвс6","Задолженность перед поставщиком (поставщиками) коммунального ресурса, руб.",{"$f":"IF(C73-C74<=0,,C73-C74)","v":0},"указывать ничего не нужно"]
["гвс7","Размер пени и штрафов, уплаченных поставщику (поставщикам) коммунального ресурса, руб.",0,"указывать ничего не нужно"]
["отопление","Отопление",{"$f":"IF(E77>0,\"Предоставляется\",0)","v":"Предоставляется"},"Гкал",837467.8,"указать сумму начисления жителям со стороны УК"]
["отопление1","Общий объем потребления, нат. показ.",737.42,"указать объем потребления Гкал"]
["отопление2","Оплачено потребителями, руб.",908202.43,"указать сумму оплаты за услугу жителями"]
["отопление3","Задолженность потребителей, руб.",{"$f":"IF(E77-C79<0,0,E77-C79)","v":0},"указывать ничего не нужно"]
["отопление4","Начислено поставщиком (поставщиками) коммунального ресурса, руб.",{"$f":"E77","v":837467.8},"указывать ничего не нужно"]
["отопление5","Оплачено поставщику (поставщикам) коммунального ресурса, руб.",{"$f":"E77","v":837467.8},"указывать ничего не нужно"]
["отопление6","Задолженность перед поставщиком (поставщиками) коммунального ресурса, руб.",{"$f":"IF(C81-C82<=0,,C81-C82)","v":0},"указывать ничего не нужно"]
["отопление7","Размер пени и штрафов, уплаченных поставщику (поставщикам) коммунального ресурса, руб.",0,"указывать ничего не нужно"]

{"sheet":"Юридический отдел","index":3,"n_rows":4,"n_cols":4,"rows_kept":4,"cut":false,"hidden":true,"merged":[]}
[null,"ПРЕТЕНЗИОННО-ИСКОВАЯ РАБОТА"]
["юр1","Направлено претензий потребителям-должникам",0,"указать в случае наличия"]
["юр2","Направлено исковых заявлений",3,"указать в случае наличия"]
["юр3","Получено денежных средств по результатам претензионно-исковой работы",98453,"указать в случае наличия"]